fUSD/lending_fUSD_20250307
["ID","MTS","AMOUNT","RATE_DAILY","PERIOD"]
[355608868,1741366245463,150.0,7.952e-05,2]
[355608871,1741366245555,233.95102441,7.98e-05,2]
[355608872,1741366245602,150.0,7.996e-05,2]
[355608873,1741366245688,150.0,7.994e-05,2]
[355608874,1741366245727,150.0,8.068e-05,2]
[355608875,1741366245767,150.0,7.971e-05,2]
[355608876,1741366245826,150.0,8.047e-05,2]
[355608877,1741366245864,150.0,8.07e-05,2]
[355608878,1741366245899,150.0,8.048e-05,2]
[355608879,1741366245938,150.0,8.074e-05,2]
[355608880,1741366245975,150.0,8.004e-05,2]
[355608883,1741366246059,150.0,7.952e-05,2]
[355608888,1741366246165,150.0,8.023e-05,2]
[355608889,1741366246205,150.0,7.949e-05,2]
[355608890,1741366246353,150.0,8.012e-05,2]
[355608891,1741366246402,150.0,7.981e-05,2]
[355608892,1741366246449,-150.0,8.085e-05,2]
[355608893,1741366246459,-150.0,8.087e-05,2]
[355608894,1741366246469,-249.06466887,8.088e-05,2]
[355608895,1741366246478,-150.0,8.091e-05,2]
[355608896,1741366246492,-150.0,8.096e-05,2]
[355608897,1741366246501,-6.59334044,8.097e-05,2]
[355608898,1741366246513,-143.40665956,8.097e-05,2]
[355608899,1741366246522,-150.0,8.102e-05,2]
[355608900,1741366246551,-150.0,8.104e-05,2]
[355608901,1741366246560,-96.85100745,8.104e-05,2]
[355608902,1741366246571,-53.14899255,8.104e-05,2]
[355608903,1741366246581,-150.0,8.118e-05,2]
[355608904,1741366246591,-59.30917962,8.118e-05,2]
[355608905,1741366246642,-90.69082038,8.118e-05,2]
[355608906,1741366246653,-150.0,8.125e-05,2]
[355608907,1741366246663,-150.0,8.136e-05,2]
[355608908,1741366246672,-150.0,8.14e-05,2]
[355608909,1741366246682,-150.0,8.143e-05,2]
[355608910,1741366246691,-150.0,8.148e-05,2]
[355608911,1741366246701,-150.0,8.149e-05,2]
[355608912,1741366246711,-150.0,8.165e-05,2]
[355608913,1741366246721,-150.0,8.166e-05,2]
[355608914,1741366246731,-150.0,8.168e-05,2]
[355608915,1741366246743,-150.0,8.172e-05,2]
[355608916,1741366246754,-150.0,8.179e-05,2]
[355608917,1741366246764,-150.0,8.18e-05,2]
[355608918,1741366246773,-150.0,8.184e-05,2]
[355608919,1741366246782,-3257.99570929,8.2e-05,2]
[355608920,1741366246794,-13051.45287026,8.2e-05,2]
[355608921,1741366246805,-106600.0,8.2e-05,2]
[355608922,1741366248388,-150.0,8.2e-05,2]
[355608923,1741366248426,-99850.0,8.2e-05,2]
[355608924,1741366250976,150.0,8.009e-05,2]
[355608925,1741366251028,150.0,8.021e-05,2]
[355608926,1741366271818,-4579.93931301,8.12e-05,2]
[355608927,1741366271847,-150.0,8.156e-05,2]
[355608928,1741366271872,-150.0,8.199e-05,2]
[355608929,1741366271898,-300.0,8.199e-05,2]
[355608930,1741366271926,-1113.0,8.2e-05,2]
[355608931,1741366271950,-150.0,8.2e-05,2]
[355608932,1741366271979,-93557.06068699,8.2e-05,2]
[355608933,1741366358032,-500.0,8.1e-05,2]
[355608934,1741366544027,-530.4538,8.1e-05,2]
[355608935,1741366544053,-163.4313,8.1e-05,2]
[355608936,1741366544077,-7056.8090453,8.194e-05,2]
[355608937,1741366544103,-3048.7466055,8.194e-05,2]
[355608938,1741366544127,-150.0,8.199e-05,2]
[355608939,1741366544151,-150.0,8.2e-05,2]
[355608940,1741366544175,-1012.0,8.2e-05,2]
[355608941,1741366544198,-200.0,8.2e-05,2]
[355608942,1741366544221,-1113.0,8.2e-05,2]
[355608943,1741366544247,-36575.5592492,8.2e-05,2]
[355608944,1741366580094,1000.0,7.943e-05,2]
[355608945,1741366580286,1000.0,7.975e-05,2]
[355608946,1741366622158,5318.28,7.314e-05,2]
[355608947,1741366629772,150.0,9.562e-05,7]
[355608948,1741366642896,-150.0,9.341e-05,5]
[355608949,1741366665375,12679.3,7.74e-05,2]
[355608950,1741366682389,739.2,7.749e-05,2]
[355608951,1741366817291,-500.0,0.000101,5]
[355608952,1741366835906,1446.47,7.714e-05,2]
[355608953,1741366879063,-1000.0,9.4e-05,4]
[355608954,1741366881001,-1000.0,9.4e-05,4]
[355608955,1741366889442,-500.0,9.4e-05,4]
[355608956,1741366893118,-300.0,9.4e-05,4]
[355608957,1741366924795,-460.0,9.4e-05,4]
[355608958,1741366926513,151.0,9.4e-05,3]
[355608959,1741366956031,353.33,7.668e-05,2]
[355608960,1741366956253,353.33,7.696e-05,2]
[355608961,1741366956540,353.33,7.725e-05,2]
[355608962,1741366956803,353.33,7.753e-05,2]
[355608963,1741366957022,353.33,7.781e-05,2]
[355608964,1741366957235,353.33,7.809e-05,2]
[355608965,1741366957466,353.33,7.838e-05,2]
[355608966,1741366957753,353.33,7.866e-05,2]
[355608967,1741366957949,353.33,7.894e-05,2]
[355608968,1741366958215,353.33,7.922e-05,2]
[355608969,1741366958413,353.33,7.951e-05,2]
[355608970,1741366958651,353.33,7.979e-05,2]
[355608971,1741366958893,353.33,8.007e-05,2]
[355608972,1741366959073,353.33,8.035e-05,2]
[355608973,1741366959282,353.33,8.064e-05,2]
[355608976,1741367179175,23900.0,7.384e-05,2]
[355608977,1741367253263,443.6,7.418e-05,2]
[355608978,1741367287901,167.16,7.726e-05,2]
[355608979,1741367298656,-353.33,8.092e-05,2]
[355608980,1741367298687,-150.0,8.106e-05,2]
[355608983,1741367298717,-550.0,8.106e-05,2]
[355608984,1741367298747,-353.33,8.12e-05,2]
[355608986,1741367298777,-353.33,8.148e-05,2]
[355608987,1741367298808,-150.0,8.15e-05,2]
[355608988,1741367298837,-1290.48714817,8.15e-05,2]
[355608989,1741367298867,-88.86271136,8.15e-05,2]
[355608990,1741367298928,-211.13728864,8.15e-05,2]
[355608991,1741367298960,-150.0,8.151e-05,2]
[355608992,1741367298990,-641.0,8.151e-05,2]
[355608993,1741367299020,-571.0,8.151e-05,2]
[355608994,1741367299049,-1459.0,8.151e-05,2]
[355608995,1741367299079,-257.20257089,8.151e-05,2]
[355608996,1741367299118,-528.79742911,8.151e-05,2]
[355608997,1741367299150,-541.0,8.151e-05,2]
[355608998,1741367299181,-1270.0,8.151e-05,2]
[355608999,1741367299217,-949.54243042,8.151e-05,2]
[355609000,1741367299269,-478.45756958,8.151e-05,2]
[355609001,1741367299300,-907.0,8.151e-05,2]
[355609002,1741367299331,-1290.48714815,8.152e-05,2]
[355609003,1741367299363,-353.33,8.177e-05,2]
[355609004,1741367299395,-150.0,8.18e-05,2]
[355609005,1741367299720,-110.0651418,8.18e-05,2]
[355609006,1741367299768,-247.4948582,8.18e-05,2]
[355609007,1741367299797,-3041.84500133,8.186e-05,2]
[355609008,1741367299836,-1000.15499867,8.186e-05,2]
[355609009,1741367299868,-1012.0,8.186e-05,2]
[355609010,1741367299905,-130.47409117,8.186e-05,2]
[355609011,1741367339715,1702.48,7.732e-05,2]
[355609045,1741367431951,-1012.0,8.199e-05,2]
[355609047,1741367431961,-3931.0,8.199e-05,2]
[355609049,1741367431970,-100.311887,8.199e-05,2]
[355609053,1741367432006,-49.688113,8.199e-05,2]
[355609055,1741367432015,-178.004,8.199e-05,2]
[355609057,1741367432025,-2137.046,8.199e-05,2]
[355609059,1741367432033,-150.0,8.199e-05,2]
[355609061,1741367432042,-300.0,8.199e-05,2]
[355609063,1741367432051,-475.354887,8.2e-05,2]
[355609066,1741367432068,-802.645113,8.2e-05,2]
[355609068,1741367432081,-550.34961612,8.2e-05,2]
[355609070,1741367432093,-1481.65038388,8.2e-05,2]
[355609071,1741367432103,-1051.98795612,8.2e-05,2]
[355609072,1741367432114,-445.61213266,8.2e-05,2]
[355609073,1741367432129,-4796.07594,8.2e-05,2]
[355609074,1741367432140,-57654.13355888,8.2e-05,2]
[355609075,1741367432149,-353.33,8.205e-05,2]
[355609076,1741367432159,-1500.0,8.219e-05,2]
[355609077,1741367432168,-5817.01,8.219e-05,2]
[355609078,1741367432178,-8039.55,8.219e-05,2]
[355609079,1741367432187,-250.0,8.219e-05,2]
[355609080,1741367432196,-2541.23,8.219e-05,2]
[355609081,1741367432206,-288.82,8.219e-05,2]
[355609082,1741367432215,-1000.0,8.219e-05,2]
[355609083,1741367432224,-1000.0,8.237e-05,2]
[355609084,1741367432234,-440.5,8.329e-05,2]
[355609085,1741367432243,-150.0,8.329e-05,2]
[355609086,1741367432252,-300.0,8.329e-05,2]
[355609087,1741367432262,-150.0,8.329e-05,2]
[355609088,1741367432271,-1000.0,8.337e-05,2]
[355609089,1741367432280,-443.6,8.345e-05,2]
[355609090,1741367432292,-989.55,8.356e-05,2]
[355609091,1741367432303,-34746.11478766,8.418e-05,2]
[355609092,1741367432319,-1391.08289891,8.418e-05,2]
[355609093,1741367432349,-523.85912474,8.418e-05,2]
[355609103,1741367437801,-484.25820093,8.418e-05,2]
[355609104,1741367437856,-18027.20800001,8.418e-05,2]
[355609105,1741367437868,-870.605,8.418e-05,2]
[355609106,1741367437960,-3022.66683852,8.418e-05,2]
[355609107,1741367437971,-9729.01604564,8.418e-05,2]
[355609108,1741367437981,-1000.0,8.437e-05,2]
[355609109,1741367437991,-428.20212168,8.447e-05,2]
[355609110,1741367438001,-150.0,8.5e-05,2]
[355609111,1741367438014,-1000.0,8.537e-05,2]
[355609112,1741367438023,-617.38464267,8.581e-05,2]
[355609113,1741367438033,-428.20212168,8.594e-05,2]
[355609114,1741367438042,-169.97,8.6e-05,2]
[355609115,1741367438052,-1000.0,8.637e-05,2]
[355609116,1741367438062,-288.82,8.676e-05,2]
[355609117,1741367438071,-561.54364406,8.684e-05,2]
[355609118,1741367438081,-1000.0,8.737e-05,2]
[355609119,1741367438090,-313.91847367,8.762e-05,2]
[355609120,1741367438099,-150.0,8.8e-05,2]
[355609121,1741367438110,-368.0,8.8e-05,2]
[355609122,1741367438119,-750.0,8.8e-05,2]
[355609123,1741367438130,-1000.0,8.837e-05,2]
[355609124,1741367438139,-2274.53301816,8.849e-05,2]
[355609125,1741367438155,-261.015,8.849e-05,2]
[355609126,1741367438172,-876.92534429,8.849e-05,2]
[355609127,1741367438181,-428.20212168,8.886e-05,2]
[355609128,1741367438191,-150.0,8.901e-05,2]
[355609129,1741367438201,-550.0,8.901e-05,2]
[355609130,1741367438211,-1000.0,8.937e-05,2]
[355609131,1741367438222,-500.0,8.938e-05,2]
[355609132,1741367438232,-97.77253399,8.938e-05,2]
[355609134,1741367438244,-402.22746601,8.938e-05,2]
[355609136,1741367438253,-150.0,8.938e-05,2]
[355609138,1741367438264,-500.0,8.938e-05,2]
[355609140,1741367438273,-150.0,8.938e-05,2]
[355609142,1741367438282,-3189.0,8.938e-05,2]
[355609144,1741367438291,-500.0,8.938e-05,2]
[355609146,1741367438303,-150.0,8.938e-05,2]
[355609148,1741367438313,-500.0,8.965e-05,2]
[355609150,1741367438323,-500.0,8.965e-05,2]
[355609152,1741367438333,-964.36985392,8.965e-05,2]
[355609154,1741367438344,-3189.0,8.965e-05,2]
[355609156,1741367438353,-500.0,8.965e-05,2]
[355609158,1741367438362,-150.0,8.965e-05,2]
[355609160,1741367438371,-500.0,8.993e-05,2]
[355609162,1741367438382,-500.0,8.993e-05,2]
[355609164,1741367438391,-1736.38383541,8.993e-05,2]
[355609166,1741367438402,-1452.61616459,8.993e-05,2]
[355609168,1741367438411,-500.0,8.993e-05,2]
[355609170,1741367438421,-150.0,8.993e-05,2]
[355609172,1741367438430,-500.0,8.999e-05,2]
[355609174,1741367438439,-239.06683381,8.999e-05,2]
[355609176,1741367438448,-551.05657008,8.999e-05,2]
[355609178,1741367438458,-500.0,8.999e-05,2]
[355609180,1741367438466,-500.0,8.999e-05,2]
[355609182,1741367438476,-500.0,8.999e-05,2]
[355609184,1741367438485,-500.0,8.999e-05,2]
[355609186,1741367438495,-150.0,9e-05,2]
[355609188,1741367438503,-1000.0,9e-05,2]
[355609190,1741367438513,-1000.0,9e-05,2]
[355609192,1741367438522,-1005.0,9e-05,2]
[355609194,1741367438532,-1010.05649808,9e-05,2]
[355609196,1741367438541,-1284.70393344,9e-05,2]
[355609199,1741367438563,-2115.47849276,9e-05,2]
[355609201,1741367438574,-3881.10508858,9e-05,2]
[355609342,1741367439952,-2503.70694616,9e-05,2]
[355609344,1741367439964,-818.6534962,9e-05,2]
[355609347,1741367439976,-583.52905299,9e-05,2]
[355609351,1741367440006,-396.84133829,9e-05,2]
[355609357,1741367440059,-309.62675677,9e-05,2]
[355609359,1741367440071,-1680.70526869,9e-05,2]
[355609365,1741367440113,-612.70327629,9e-05,2]
[355609373,1741367440185,-1257.4008,9e-05,2]
[355609375,1741367440196,-438.44322488,9e-05,2]
[355609385,1741367440276,-462.72905388,9e-05,2]
[355609402,1741367440569,-6221.10904991,9e-05,2]
[355609404,1741367440583,-3284.47656286,9e-05,2]
[355609407,1741367440595,-1084.29885559,9e-05,2]
[355609577,1741367443007,-1113.0,8.28e-05,2]
[355609578,1741367443019,-1171.12585026,9e-05,2]
[355609592,1741367444310,-2146.59531106,9e-05,2]
[355609593,1741367444321,-6571.98726165,9e-05,2]
[355609594,1741367444356,-3000.0,9e-05,2]
[355609595,1741367444367,-81338.97863293,9e-05,2]
[355609599,1741367446134,-2000.0,8.135e-05,2]
[355609600,1741367446144,-5274.96071699,9e-05,2]
[355609601,1741367446190,-327.31218504,9e-05,2]
[355609602,1741367446201,-2675.19655754,9e-05,2]
[355609605,1741367446232,-1702.54581808,9e-05,2]
[355609615,1741367916733,-300.0,8.099e-05,2]
[355609616,1741367943467,-243.28581334,9.371e-05,5]
[355609617,1741367943503,-1096.71418666,9.4e-05,4]
[355609618,1741367972740,-150.0,9.562e-05,7]
[355609619,1741367972779,-550.0,0.000101,5]
[355609620,1741368032912,-154.07,0.000139,31]
[355609621,1741368032944,-154.07,0.000139,31]
[355609622,1741368032976,-154.07,0.000139,31]
[355609623,1741368033009,-154.07,0.000139,31]
[355609624,1741368033042,-154.07,0.000139,31]
[355609625,1741368033075,-154.07,0.000139,31]
[355609626,1741368033108,-154.07,0.000139,31]
[355609627,1741368033141,-154.07,0.000139,31]
[355609630,1741368428665,151.0,9.4e-05,4]
[355609680,1741368632275,-200.0,8.112e-05,2]
[355609681,1741368632285,-150.0,8.122e-05,2]
[355609682,1741368632295,-150.0,8.145e-05,2]
[355609683,1741368632304,-300.0,8.148e-05,2]
[355609684,1741368632314,-126.10022701,8.149e-05,2]
[355609685,1741368632326,-2246.1,8.149e-05,2]
[355609686,1741368632338,-518.94,8.149e-05,2]
[355609687,1741368632350,-1079.31057311,8.149e-05,2]
[355609688,1741368632373,-3061.22021954,8.149e-05,2]
[355609689,1741368632384,-4317.6,8.149e-05,2]
[355609690,1741368632420,-4620.80655405,8.149e-05,2]
[355609707,1741368638058,-2689.04242629,8.149e-05,2]
[355609708,1741368638069,-159.26,8.149e-05,2]
[355609709,1741368638080,-1709.637,8.15e-05,2]
[355609710,1741368638090,-178.004,8.15e-05,2]
[355609711,1741368638100,-576.74266117,8.15e-05,2]
[355609712,1741368638110,-150.0,8.218e-05,2]
[355609713,1741368638120,-4210.09,8.219e-05,2]
[355609714,1741368638129,-250.0,8.219e-05,2]
[355609715,1741368638139,-2482.01,8.219e-05,2]
[355609716,1741368638149,-247.52,8.219e-05,2]
[355609717,1741368638158,-159.26,8.263e-05,2]
[355609718,1741368638167,-6939.69705348,8.27e-05,2]
[355609719,1741368638177,-571.0,8.28e-05,2]
[355609720,1741368638186,-150.0,8.28e-05,2]
[355609721,1741368638196,-1459.0,8.28e-05,2]
[355609722,1741368638206,-641.0,8.28e-05,2]
[355609723,1741368638215,-786.0,8.28e-05,2]
[355609724,1741368638225,-907.0,8.28e-05,2]
[355609725,1741368638234,-541.0,8.28e-05,2]
[355609726,1741368638244,-1270.0,8.28e-05,2]
[355609727,1741368638253,-1428.0,8.28e-05,2]
[355609728,1741368638266,-4042.0,8.28e-05,2]
[355609729,1741368638276,-1113.0,8.28e-05,2]
[355609730,1741368638285,-2032.0,8.28e-05,2]
[355609731,1741368638299,-150.0,8.28e-05,2]
[355609732,1741368638308,-642.0,8.28e-05,2]
[355609733,1741368638318,-3931.0,8.28e-05,2]
[355609734,1741368638328,-159.26,8.377e-05,2]
[355609735,1741368638338,-159.26,8.491e-05,2]
[355609736,1741368638347,-159.26,8.605e-05,2]
[355609737,1741368638357,-247.52,8.676e-05,2]
[355609738,1741368638367,-159.26,8.719e-05,2]
[355609739,1741368638377,-15311.06,8.767e-05,2]
[355609740,1741368638387,-324.4442,8.8e-05,2]
[355609742,1741368638396,-3411.1173,8.8e-05,2]
[355609744,1741368638406,-2423.7386,8.8e-05,2]
[355609746,1741368638415,-28579.2728,8.8e-05,2]
[355609748,1741368638425,-13367.5273,8.8e-05,2]
[355609750,1741368638435,-2500.0,8.8e-05,2]
[355609752,1741368638445,-205.27214592,8.873e-05,2]
[355609754,1741368638455,-500.0,8.899e-05,2]
[355609756,1741368638464,-500.0,8.899e-05,2]
[355609758,1741368638473,-500.0,8.899e-05,2]
[355609760,1741368638483,-635.73959905,8.899e-05,2]
[355609762,1741368638492,-5465.41762463,8.9e-05,2]
[355609764,1741368638505,-442.59744488,8.9e-05,2]
[355609767,1741368638517,-384.1090751,8.9e-05,2]
[355609769,1741368638529,-949.82050932,8.9e-05,2]
[355609773,1741368638562,-26071.2596,8.9e-05,2]
[355609775,1741368638573,-1217.63557993,8.9e-05,2]
[355609937,1741368640160,-1012.0,8.28e-05,2]
[355609939,1741368640170,-500.0,8.873e-05,2]
[355609941,1741368640179,-149815.06343235,8.9e-05,2]
[355609943,1741368640191,-50283.68526605,8.9e-05,2]
[355609947,1741368640216,-2381.96686125,8.9e-05,2]
[355609959,1741368640328,-1021.095,8.9e-05,2]
[355609961,1741368640339,-483.21795857,8.9e-05,2]
[355609963,1741368640351,-957.52029218,8.9e-05,2]
[355609964,1741368640363,-520.02771299,8.9e-05,2]
[355609965,1741368640374,-4964.31847984,8.9e-05,2]
[355609966,1741368640386,-3800.0,8.9e-05,2]
[355609967,1741368640398,-1099.24815,8.9e-05,2]
[355609968,1741368640446,-434.33,8.9e-05,2]
[355609970,1741368640503,-625.42636932,8.9e-05,2]
[355609971,1741368640516,-661.17175763,8.9e-05,2]
[355609976,1741368640548,-695.8813472,8.9e-05,2]
[355610261,1741368643288,-167.34678366,8.899e-05,2]
[355610262,1741368643297,-297.15721634,8.9e-05,2]
[355610263,1741368643309,-294.14994472,8.9e-05,2]
[355610264,1741368643320,-772.82854254,8.9e-05,2]
[355610265,1741368643331,-929.03727598,8.9e-05,2]
[355610266,1741368643342,-7155.89828018,8.9e-05,2]
[355610267,1741368643357,-10792.47407275,8.9e-05,2]
[355610268,1741368643368,-6733.00100985,8.9e-05,2]
[355610269,1741368643379,-1806.49803386,8.9e-05,2]
[355610270,1741368643394,-2805.64233071,8.9e-05,2]
[355610271,1741368643405,-644.98480463,8.9e-05,2]
[355610273,1741368643420,-1973.95844261,8.9e-05,2]
[355610274,1741368643431,-6128.10690623,8.9e-05,2]
[355610275,1741368643442,-6660.35750267,8.9e-05,2]
[355610276,1741368643453,-1360.84995,8.9e-05,2]
[355610277,1741368643464,-419.09848915,8.9e-05,2]
[355610278,1741368643483,-435.50221154,8.9e-05,2]
[355610288,1741368643868,-698.384581,8.9e-05,2]
[355610289,1741368643881,-2846.52978326,8.9e-05,2]
[355610290,1741368646197,-1278.0,8.28e-05,2]
[355610291,1741368646207,-565.65503833,8.9e-05,2]
[355610292,1741368646218,-1518.67982264,8.9e-05,2]
[355610293,1741368646307,-433.08444,8.9e-05,2]
[355610294,1741368646318,-1179.99167335,8.9e-05,2]
[355610295,1741368646330,-856.66481853,8.9e-05,2]
[355610296,1741368646363,-13871.23833646,8.9e-05,2]
[355610304,1741369599046,266.16,8.048e-05,2]
[355610324,1741369832662,-541.05884223,8.219e-05,2]
[355610325,1741369832674,-1884.16115777,8.219e-05,2]
[355610326,1741369832683,-150.0,8.22e-05,2]
[355610327,1741369832692,-550.0,8.22e-05,2]
[355610328,1741369832702,-173.6,8.221e-05,2]
[355610329,1741369832711,-150.0,8.234e-05,2]
[355610330,1741369832720,-300.0,8.248e-05,2]
[355610331,1741369832730,-1453.11,8.249e-05,2]
[355610332,1741369832739,-150.0,8.274e-05,2]
[355610333,1741369832748,-2105.04,8.294e-05,2]
[355610334,1741369832761,-250.0,8.294e-05,2]
[355610335,1741369832770,-150.0,8.349e-05,2]
[355610336,1741369832780,-2032.0,8.35e-05,2]
[355610337,1741369832789,-1278.0,8.35e-05,2]
[355610338,1741369832798,-1459.0,8.35e-05,2]
[355610339,1741369832808,-571.0,8.35e-05,2]
[355610340,1741369832817,-641.0,8.35e-05,2]
[355610341,1741369832826,-786.0,8.35e-05,2]
[355610342,1741369832836,-1428.0,8.35e-05,2]
[355610343,1741369832845,-907.0,8.35e-05,2]
[355610344,1741369832855,-541.0,8.35e-05,2]
[355610365,1741369833103,-1270.0,8.35e-05,2]
[355610368,1741369833114,-4042.0,8.35e-05,2]
[355610370,1741369833124,-150.0,8.35e-05,2]
[355610372,1741369833134,-3931.0,8.35e-05,2]
[355610373,1741369833146,-1012.0,8.35e-05,2]
[355610375,1741369833156,-168.33,8.465e-05,2]
[355610377,1741369833165,-1000.0,8.623e-05,2]
[355610380,1741369833175,-5756.13064885,8.799e-05,2]
[355610381,1741369833183,-27398.71079553,8.8e-05,2]
[355610393,1741369833282,-1000.398,8.8e-05,2]
[355610394,1741369833293,-6100.52241716,8.8e-05,2]
[355610395,1741369833314,-251.14906,8.8e-05,2]
[355610396,1741369833346,-159.66562731,8.8e-05,2]
[355610397,1741369833355,-1339.7216,8.8e-05,2]
[355610398,1741369833365,-999.99,8.864e-05,2]
[355610399,1741369833374,-941.38,8.864e-05,2]
[355610400,1741369833383,-293.8,8.864e-05,2]
[355610401,1741369833393,-647.39277269,8.864e-05,2]
[355610402,1741369833404,-598.38218622,8.864e-05,2]
[355610403,1741369833416,-3417.71609367,8.864e-05,2]
[355610404,1741369833427,-615.91894742,8.864e-05,2]
[355610405,1741369833437,-500.0,8.879e-05,2]
[355610406,1741369833447,-500.0,8.879e-05,2]
[355610407,1741369833456,-500.0,8.879e-05,2]
[355610408,1741369833465,-468.68105258,8.879e-05,2]
[355610409,1741369833480,-486.26193537,8.879e-05,2]
[355610410,1741369833492,-412.76701205,8.879e-05,2]
[355610411,1741369833502,-94.84077951,8.879e-05,2]
[355610412,1741369833559,-405.15922049,8.879e-05,2]
[355610413,1741369833569,-698.39791426,8.9e-05,2]
[355610414,1741369833581,-288.8543926,8.9e-05,2]
[355610415,1741369833593,-591.826501,8.9e-05,2]
[355610416,1741369838395,-150.0,8.35e-05,2]
[355610417,1741369838405,-3040.99159214,8.9e-05,2]
[355610418,1741369838414,-739.9862,8.9e-05,2]
[355610419,1741369838423,-4288.2659,8.9e-05,2]
[355610420,1741369838432,-9361.3809,8.9e-05,2]
[355610421,1741369838441,-5016.1023,8.9e-05,2]
[355610422,1741369838451,-3672.8696,8.9e-05,2]
[355610423,1741369838460,-5185.5066,8.9e-05,2]
[355610424,1741369838469,-1795.1369,8.9e-05,2]
[355610425,1741369838478,-298.8855,8.9e-05,2]
[355610426,1741369838487,-397.1099,8.9e-05,2]
[355610427,1741369838497,-2500.0,8.9e-05,2]
[355610428,1741369838506,-4259.7796,8.9e-05,2]
[355610430,1741369838515,-841.71852721,8.956e-05,2]
[355610432,1741369838524,-2432.97182496,9e-05,2]
[355610435,1741369838547,-926.96538,9e-05,2]
[355610436,1741369840322,-1907.81863001,8.9e-05,2]
[355610437,1741369840333,-1846.60000003,8.9e-05,2]
[355610438,1741369840377,-326.685,8.9e-05,2]
[355610439,1741369840594,-1041.1660869,8.9e-05,2]
[355610575,1741369843330,-1629.41288719,8.9e-05,2]
[355610577,1741369843339,-124.29881478,9e-05,2]
[355610579,1741369843448,-115371.55044942,9e-05,2]
[355610580,1741369843458,-1063.89603874,9e-05,2]
[355610581,1741369843468,-1000.0,9e-05,2]
[355610582,1741369843477,-167.16,9.001e-05,2]
[355610583,1741369843487,-1000.0,9.037e-05,2]
[355610584,1741369843496,-550.0,9.041e-05,2]
[355610585,1741369843505,-150.0,9.041e-05,2]
[355610586,1741369843513,-550.0,9.041e-05,2]
[355610587,1741369843522,-266.16,9.054e-05,2]
[355610588,1741369843531,-420.0,9.073e-05,2]
[355610589,1741369843540,-1278.0,9.1e-05,2]
[355610591,1741369843549,-247.52,9.132e-05,2]
[355610592,1741369843559,-1000.0,9.137e-05,2]
[355610593,1741369843568,-433.60845456,9.162e-05,2]
[355610594,1741369843577,-255.0,9.184e-05,2]
[355610595,1741369843586,-164.184342,9.204e-05,2]
[355610596,1741369843595,-1000.0,9.237e-05,2]
[355610597,1741369843604,-232.0,9.3e-05,2]
[355610598,1741369843613,-368.0,9.3e-05,2]
[355610599,1741369843621,-750.0,9.3e-05,2]
[355610600,1741369843631,-1000.0,9.337e-05,2]
[355610601,1741369843639,-1711.81204159,9.371e-05,2]
[355610602,1741369843648,-643.28581334,9.4e-05,4]
[355610604,1741369843657,-1000.0,9.437e-05,2]
[355610606,1741369843667,-1000.0,9.537e-05,2]
[355610607,1741369843675,-433.60845456,9.548e-05,2]
[355610608,1741369843684,-150.0,9.562e-05,7]
[355610609,1741369843693,-500.0,9.57e-05,2]
[355610610,1741369843702,-247.52,9.589e-05,2]
[355610611,1741369843710,-1000.0,9.637e-05,2]
[355610612,1741369843719,-400.0,9.7e-05,2]
[355610613,1741369843728,-7074.08871678,9.7e-05,3]
[355610614,1741369843737,-1000.0,9.7e-05,2]
[355610615,1741369843747,-1000.0,9.737e-05,2]
[355610616,1741369843756,-433.60845456,9.742e-05,2]
[355610617,1741369843766,-500.0,9.789e-05,2]
[355610618,1741369843776,-500.0,9.789e-05,2]
[355610619,1741369843785,-150.0,9.789e-05,2]
[355610620,1741369843795,-2710.0,9.789e-05,2]
[355610621,1741369843804,-150.0,9.789e-05,2]
[355610622,1741369843814,-150.0,9.789e-05,2]
[355610623,1741369843824,-150.0,9.796e-05,2]
[355610624,1741369843833,-205.0,9.8e-05,2]
[355610625,1741369843843,-1213.9,9.8e-05,2]
[355610626,1741369844052,-26296.26810486,9.8e-05,2]
[355610627,1741369844066,-444.383257,9.8e-05,2]
[355610628,1741369844082,-444.383257,9.8e-05,2]
[355610629,1741369844093,-792.9483303,9.816e-05,2]
[355610630,1741369844103,-995.56424589,9.816e-05,2]
[355610631,1741369844113,-2710.0,9.816e-05,2]
[355610632,1741369844126,-150.0,9.816e-05,2]
[355610633,1741369844136,-279.68223242,9.816e-05,2]
[355610634,1741369844146,-450.23092217,9.828e-05,2]